bitfinex/quotes_SOLUSD_20220207
["timestamp","ask_amount","ask_price","bid_price","bid_amount"]
[1644213565071,38.59319632,118.22,118.11,13.89853265]
[1644213565270,38.59319632,118.22,118.12,49.68745405]
[1644213565471,38.59319632,118.22,118.12,66.45110631]
[1644213565672,12.5284,118.25,118.12,72.70110631]
[1644213565874,12.5284,118.25,118.13,26.2378943]
[1644213566072,12.5284,118.25,118.14,12.21]
[1644213566272,12.7784,118.25,118.14,14.3650943]
[1644213566473,12.7784,118.25,118.14,20.3650943]
[1644213566674,48.39023624,118.25,118.15,42.16795475]
[1644213566875,48.2469,118.27,118.15,42.16795475]
[1644213566876,1.18786258,118.28,118.16,12.21]
[1644213567073,1.18786258,118.28,118.16,44.15762695]
[1644213567074,6.0,118.28,118.16,44.15762695]
[1644213567274,14.01386258,118.31,118.17,23.7453]
[1644213567474,20.01386258,118.31,118.18,12.21]
[1644213567676,20.01386258,118.31,118.18,20.1150943]
[1644213567875,45.00686759,118.3,118.18,20.3650943]
[1644213568075,4.228,118.29,118.18,18.21]
[1644213568275,0.25,118.29,118.18,18.21]
[1644213568478,6.25,118.29,118.18,18.21]
[1644213568875,37.87843526,118.28,118.18,18.21]
[1644213569075,37.87843526,118.28,118.17,23.7453]
[1644213569076,50.46304616,118.28,118.17,23.7453]
[1644213569276,101.01304616,118.28,118.13,13.41413265]
[1644213569476,88.1880109,118.27,118.13,12.21]
[1644213569677,4.23,118.26,118.11,1.20413265]
[1644213569877,12.21,118.25,118.11,1.20413265]
[1644213570077,44.66536614,118.24,118.12,44.88789108]
[1644213570278,44.91536614,118.24,118.12,59.25298538]
[1644213570477,50.91536614,118.24,118.13,1.9050943]
[1644213570679,50.91536614,118.24,118.14,31.64829077]
[1644213571083,50.66536614,118.24,118.14,39.80338507]
[1644213571979,50.66536614,118.24,118.15,12.21]
[1644213572179,50.66536614,118.24,118.16,40.83763661]
[1644213572381,50.91536614,118.24,118.16,40.83763661]
[1644213572580,50.91536614,118.24,118.16,41.08763661]
[1644213572980,6.25,118.24,118.16,41.08763661]
[1644213573181,0.25,118.24,118.16,48.99273091]
[1644213573381,6.25,118.24,118.17,12.21]
[1644213573584,6.0,118.24,118.17,18.21]
[1644213573782,6.25,118.24,118.17,18.46]
[1644213573983,44.45869845,118.23,118.17,18.46]
[1644213574183,44.45869845,118.23,118.17,12.46]
[1644213574383,44.70869845,118.23,118.17,12.46]
[1644213574586,50.70869845,118.23,118.15,12.21]
[1644213574783,50.70869845,118.23,118.15,12.46]
[1644213574984,50.70869845,118.23,118.15,18.46]
[1644213575185,44.70869845,118.23,118.15,18.46]
[1644213575385,44.70869845,118.23,118.15,18.21]
[1644213575584,50.70869845,118.23,118.16,36.64418056]
[1644213575785,50.70869845,118.23,118.16,36.89418056]
[1644213576789,44.70869845,118.23,118.16,36.89418056]
[1644213577591,50.70869845,118.23,118.16,36.89418056]
[1644213577791,44.70869845,118.23,118.16,36.89418056]
[1644213578592,44.70869845,118.23,118.16,0.25]
[1644213578793,44.70869845,118.23,118.14,18.46]
[1644213578993,50.70869845,118.23,118.14,12.46]
[1644213579415,50.70869845,118.23,118.13,46.4935]
[1644213579714,50.70869845,118.23,118.13,91.29799768]
[1644213580813,50.70869845,118.23,118.13,91.04799768]
[1644213582616,50.70869845,118.23,118.13,97.04799768]
[1644213582817,50.70869845,118.23,118.13,91.04799768]
[1644213584619,52.81430935,118.23,118.13,91.04799768]
[1644213585417,52.81430935,118.23,118.13,46.4935]
[1644213586419,52.81430935,118.23,118.14,40.47201967]
[1644213588422,52.81430935,118.23,118.13,46.4935]
[1644213589325,52.81430935,118.23,118.13,89.42227343]
[1644213592925,23.3012,118.22,118.13,89.42227343]
[1644213593227,29.5512,118.22,118.13,89.42227343]
[1644213594428,29.5512,118.22,118.13,42.92877343]
[1644213595027,23.5512,118.22,118.13,61.13877343]
[1644213595226,0.25,118.22,118.13,64.2381582]
[1644213595426,0.25,118.22,118.14,24.02223265]
[1644213595626,30.7692,118.26,118.15,12.21]
[1644213595926,30.2692,118.26,118.16,23.2801]
[1644213596128,35.02994738,118.25,118.17,33.60740842]
[1644213596327,35.27994738,118.25,118.17,33.85740842]
[1644213596627,6.0,118.25,118.17,52.06740842]
[1644213596827,6.0,118.25,118.17,53.96798701]
[1644213597031,6.0,118.26,118.17,53.96798701]
[1644213597229,22.7193,118.27,118.17,53.96798701]
[1644213597429,76.260624,118.3,118.17,65.50311966]
[1644213597629,62.23996142,118.3,118.18,1.20413265]
[1644213597830,1.18786258,118.32,118.19,12.21]
[1644213598032,1.18786258,118.32,118.2,23.8887]
[1644213598233,13.61016258,118.33,118.21,12.21]
[1644213598631,19.61016258,118.33,118.21,20.36057859]
[1644213598833,46.55669516,118.32,118.22,44.82935202]
[1644213599031,46.55669516,118.32,118.22,57.03935202]
[1644213599232,52.55669516,118.32,118.22,63.28935202]
[1644213599735,76.36439516,118.32,118.22,63.28935202]
[1644213600336,76.61439516,118.32,118.22,63.28935202]
[1644213600835,76.11439516,118.32,118.22,63.28935202]
[1644213601435,6.25,118.32,118.22,75.97205202]
[1644213601633,6.0,118.34,118.23,1.90057859]
[1644213601834,6.0,118.32,118.24,12.21]
[1644213602037,6.0,118.34,118.24,12.21]
[1644213602233,6.0,118.34,118.24,20.36057859]
[1644213602434,43.01116258,118.36,118.24,20.36057859]
[1644213602635,37.07034423,118.35,118.25,34.10740842]
[1644213602834,37.07034423,118.35,118.27,42.25797277]
[1644213603047,43.07034423,118.35,118.27,42.25797277]
[1644213603234,43.32034423,118.35,118.27,42.50797277]
[1644213604436,43.07034423,118.35,118.27,42.50797277]
[1644213604737,4.37308192,118.38,118.27,48.50797277]
[1644213604939,0.14708192,118.38,118.28,14.11057859]
[1644213605137,0.14708192,118.38,118.28,20.11057859]
[1644213605337,0.14708192,118.38,118.28,20.36057859]
[1644213605736,36.57992731,118.38,118.29,34.2257017]
[1644213605938,36.57992731,118.38,118.29,46.4357017]
[1644213606136,42.57992731,118.38,118.29,52.6857017]
[1644213607039,6.0,118.38,118.29,52.6857017]
[1644213607240,0.29416384,118.39,118.29,67.26058029]
[1644213607540,0.00416384,118.39,118.3,152.62]
[1644213607738,0.00416384,118.39,118.32,152.62]
[1644213607938,0.00416384,118.39,118.33,12.21]
[1644213608140,0.00416384,118.39,118.33,18.21]
[1644213608339,0.00416384,118.39,118.33,20.36057859]
[1644213608539,0.00416384,118.39,118.33,18.46]
[1644213608742,0.00416384,118.39,118.34,1.90057859]
[1644213608941,0.00416384,118.39,118.35,12.21]
[1644213609140,0.00416384,118.39,118.35,18.21]
[1644213609347,0.00416384,118.39,118.35,20.36057859]
[1644213609948,0.00416384,118.39,118.36,12.6669]
[1644213610150,0.00416384,118.39,118.37,6.06439994]
[1644213612153,0.00416384,118.39,118.37,3.03219997]
[1644213613266,43.35838834,118.43,118.34,49.13849428]
[1644213613565,43.35838834,118.43,118.34,55.13849428]
[1644213614968,43.10838834,118.43,118.34,18.21]
[1644213615566,43.10838834,118.43,118.34,6.0]
[1644213615766,45.21399924,118.43,118.32,12.21]
[1644213615969,4.223,118.42,118.31,45.36828032]
[1644213616170,12.6774,118.4,118.31,45.36828032]
[1644213616368,40.85230725,118.39,118.31,45.36828032]
[1644213616670,46.85230725,118.39,118.29,12.21]
[1644213616870,49.20791815,118.39,118.29,18.21]
[1644213617268,47.10230725,118.39,118.29,18.21]
[1644213617672,47.10230725,118.39,118.3,41.33281044]
[1644213618073,59.78140725,118.39,118.3,41.33281044]
[1644213618672,41.10230725,118.39,118.3,53.54281044]
[1644213618873,40.85230725,118.39,118.3,55.44338903]
[1644213619075,40.85230725,118.39,118.3,55.69338903]
[1644213619473,46.85230725,118.39,118.3,55.69338903]
[1644213619673,46.85230725,118.39,118.3,61.69338903]
[1644213619877,46.85230725,118.39,118.3,53.79281044]
[1644213620076,46.85230725,118.39,118.3,59.79281044]
[1644213620273,47.10230725,118.39,118.3,53.79281044]
[1644213620474,47.10230725,118.39,118.3,59.79281044]
[1644213620675,47.10230725,118.39,118.3,53.54281044]
[1644213621478,59.78150725,118.39,118.3,53.54281044]
[1644213621876,59.78150725,118.39,118.3,41.33281044]
[1644213622079,59.78150725,118.39,118.28,14.11057859]
[1644213622277,59.78150725,118.39,118.28,0.25]
[1644213622579,61.88711815,118.39,118.28,0.25]
[1644213622977,82.34870725,118.39,118.28,0.25]
[1644213623479,84.45431815,118.39,118.26,6.0]
[1644213623778,12.6841,118.35,118.25,12.21]
[1644213623979,12.9341,118.35,118.23,14.11057859]
[1644213624179,2.1056109,118.34,118.23,6.0]
[1644213624378,34.87942619,118.33,118.2,14.11057859]
[1644213624578,64.16912619,118.33,118.21,42.72310375]
[1644213624777,64.41912619,118.33,118.21,42.72310375]
[1644213625378,64.41912619,118.33,118.21,42.97310375]
[1644213625678,64.41912619,118.33,118.21,48.97310375]
[1644213626081,38.58387808,118.31,118.21,48.97310375]
[1644213626283,38.83387808,118.31,118.21,48.97310375]
[1644213626480,44.83387808,118.31,118.21,48.97310375]
[1644213627081,44.83387808,118.31,118.21,42.97310375]
[1644213628582,44.58387808,118.31,118.22,12.21]
[1644213628781,44.58387808,118.31,118.23,34.3130781]
[1644213629182,44.58387808,118.31,118.23,34.5630781]
[1644213629583,44.58387808,118.31,118.23,34.3130781]
[1644213629783,44.83387808,118.31,118.23,34.3130781]
[1644213629984,44.83387808,118.31,118.23,36.22946539]
[1644213630388,44.83387808,118.31,118.23,36.47946539]
[1644213630584,44.58387808,118.31,118.23,42.47946539]
[1644213631386,6.0,118.31,118.23,42.47946539]
[1644213631584,6.0,118.33,118.23,42.47946539]
[1644213631788,6.0,118.33,118.24,12.21]
[1644213631985,42.1227,118.36,118.24,12.21]
[1644213632187,42.1227,118.36,118.25,1.91638729]
[1644213632386,36.2256744,118.35,118.27,34.54578046]
[1644213632588,42.2256744,118.35,118.27,40.54578046]
[1644213632789,42.2256744,118.35,118.27,40.79578046]
[1644213633189,42.2256744,118.35,118.27,34.79578046]
[1644213633387,42.2256744,118.35,118.25,1.91638729]
[1644213633588,54.9091744,118.35,118.23,12.21]
[1644213633787,59.3851744,118.35,118.23,12.21]
[1644213634387,59.3851744,118.35,118.23,49.87453048]
[1644213634787,55.1591744,118.35,118.23,49.87453048]
[1644213635291,55.1591744,118.35,118.23,50.12453048]
[1644213635688,55.1591744,118.35,118.23,12.21]
[1644213635889,4.226,118.34,118.23,12.21]
[1644213636090,12.6868,118.32,118.23,12.21]
[1644213636389,12.9368,118.32,118.23,12.21]
[1644213636589,38.28228038,118.31,118.23,53.97449809]
[1644213636802,38.53228038,118.31,118.23,53.97449809]
[1644213636989,44.53228038,118.31,118.23,53.97449809]
[1644213637390,44.53228038,118.31,118.23,54.22449809]
[1644213637793,31.12461857,118.31,118.23,54.22449809]
[1644213638191,31.12461857,118.31,118.23,56.14088538]
[1644213638492,31.12461857,118.31,118.23,62.14088538]
[1644213638691,25.12461857,118.31,118.23,62.14088538]
[1644213641393,0.25,118.31,118.23,62.14088538]
[1644213641795,12.934,118.34,118.23,62.14088538]
[1644213641994,18.934,118.34,118.23,62.14088538]
[1644213642397,43.32423502,118.33,118.23,62.14088538]
[1644213642594,49.32423502,118.33,118.23,62.14088538]
[1644213642795,49.57423502,118.33,118.23,62.14088538]
[1644213643000,49.32423502,118.33,118.23,62.14088538]
[1644213643194,6.0,118.33,118.23,62.14088538]
[1644213643394,6.0,118.33,118.23,63.34501803]
[1644213643594,53.0763,118.36,118.23,63.34501803]
[1644213643795,53.0763,118.36,118.23,87.68711803]
[1644213644194,46.99928821,118.35,118.23,87.68711803]
[1644213644595,52.99928821,118.35,118.23,87.68711803]
[1644213644797,52.99928821,118.35,118.24,1.20413265]
[1644213644994,52.99928821,118.35,118.25,68.16143032]
[1644213645194,52.99928821,118.35,118.25,76.33522591]
[1644213645395,46.99928821,118.35,118.25,76.33522591]
[1644213645599,47.0763,118.36,118.26,1.92379559]
[1644213645798,12.6799,118.38,118.27,12.21]
[1644213646000,6.25,118.36,118.27,12.21]
[1644213646198,6.25,118.36,118.27,18.46]
[1644213646599,42.33299281,118.35,118.28,38.0439973]
[1644213646800,42.58299281,118.35,118.28,38.2939973]
[1644213647000,42.58299281,118.35,118.28,44.2939973]
[1644213647199,0.25,118.35,118.28,44.2939973]
[1644213647398,0.25,118.35,118.28,38.0439973]
[1644213648201,34.20565683,118.37,118.28,38.0439973]
[1644213648399,34.20565683,118.37,118.28,44.0439973]
[1644213648600,40.45565683,118.37,118.28,38.0439973]
[1644213649200,40.45565683,118.37,118.28,38.2939973]
[1644213649400,40.45565683,118.37,118.28,44.2939973]
[1644213649601,53.13675683,118.37,118.28,38.0439973]
[1644213651207,54.32461941,118.37,118.28,38.0439973]
[1644213651407,53.13675683,118.37,118.28,38.0439973]
[1644213651816,54.32461941,118.37,118.28,38.0439973]
[1644213653009,66.53461941,118.37,118.26,46.7534]
[1644213653208,66.53461941,118.37,118.26,6.0]
[1644213653412,1.18786258,118.36,118.24,7.20413265]
[1644213653610,12.6842,118.34,118.24,6.0]
[1644213653810,12.9342,118.34,118.24,6.0]
[1644213654110,45.32823904,118.33,118.25,42.53481365]
[1644213654329,45.57823904,118.33,118.25,42.78481365]
[1644213654531,51.57823904,118.33,118.25,42.78481365]
[1644213654730,51.57823904,118.33,118.25,48.78481365]
[1644213655130,45.57823904,118.33,118.25,48.78481365]
[1644213655530,0.25,118.33,118.25,48.78481365]
[1644213655730,6.25,118.34,118.25,48.78481365]
[1644213655933,0.25,118.34,118.25,48.78481365]
[1644213656130,0.25,118.34,118.26,1.92912295]
[1644213656330,49.20556258,118.38,118.26,14.38912295]
[1644213656531,40.92770711,118.37,118.27,35.57893422]
[1644213656731,40.92770711,118.37,118.27,35.82893422]
[1644213656933,40.92770711,118.37,118.27,41.82893422]
[1644213657831,41.17770711,118.37,118.27,41.82893422]
[1644213658434,40.92770711,118.37,118.27,41.82893422]
[1644213658831,46.92770711,118.37,118.27,41.82893422]
[1644213659332,60.79676969,118.37,118.27,41.57893422]
[1644213659531,60.79676969,118.37,118.27,35.57893422]
[1644213659733,61.04676969,118.37,118.27,35.57893422]
[1644213660532,61.04676969,118.37,118.27,35.82893422]
[1644213661334,59.85890711,118.37,118.27,35.82893422]
[1644213663034,61.04676969,118.37,118.27,35.82893422]
[1644213663237,59.85890711,118.37,118.27,35.82893422]
[1644213663637,59.85890711,118.37,118.27,41.82893422]
[1644213664237,59.85890711,118.37,118.27,35.82893422]
[1644213664739,61.04676969,118.37,118.27,35.82893422]
[1644213664940,59.85890711,118.37,118.27,35.82893422]
[1644213665341,47.17770711,118.37,118.27,35.82893422]
[1644213665540,47.17770711,118.37,118.27,43.75805717]
[1644213666543,41.17770711,118.37,118.27,43.75805717]
[1644213667941,47.17770711,118.37,118.27,43.75805717]
[1644213668142,0.25,118.37,118.28,12.21]
[1644213668342,24.12206258,118.39,118.28,12.46]
[1644213668549,30.12206258,118.39,118.28,18.46]
[1644213668942,30.12206258,118.39,118.28,20.38912295]
[1644213669143,30.12206258,118.39,118.29,42.93448731]
[1644213669343,6.25,118.39,118.29,55.39448731]
[1644213669545,6.25,118.39,118.3,1.92912295]
[1644213669743,6.25,118.39,118.31,58.11521248]
[1644213670145,6.25,118.39,118.31,64.36521248]
[1644213670345,0.25,118.39,118.31,64.36521248]
[1644213670546,6.0,118.39,118.31,64.36521248]
[1644213671147,6.0,118.4,118.31,64.36521248]
[1644213671347,6.0,118.4,118.31,66.29433543]
[1644213671545,6.0,118.41,118.31,66.29433543]
[1644213671744,7.18786258,118.42,118.31,66.29433543]
[1644213671944,1.18786258,118.42,118.31,66.29433543]
[1644213672146,43.18097988,118.42,118.31,66.29433543]
[1644213672345,42.93097988,118.42,118.31,66.29433543]
[1644213672546,42.93097988,118.42,118.31,74.64733543]
[1644213672946,42.93097988,118.42,118.31,87.31983543]
[1644213673447,1.81891942,118.43,118.31,87.31983543]
[1644213673649,0.63105684,118.43,118.31,112.39426808]
[1644213674447,36.28248057,118.42,118.32,22.7151]
[1644213674646,36.28248057,118.42,118.33,48.50114569]
[1644213674848,36.28248057,118.42,118.33,48.75114569]
[1644213675048,36.28248057,118.42,118.33,54.75114569]
[1644213675649,42.53248057,118.42,118.33,54.75114569]
[1644213676048,42.53248057,118.42,118.33,54.50114569]
[1644213676249,42.53248057,118.42,118.33,42.29114569]
[1644213676451,42.53248057,118.42,118.33,36.29114569]
[1644213677548,42.53248057,118.42,118.33,42.54114569]
[1644213677749,42.53248057,118.42,118.33,36.54114569]
[1644213677948,42.53248057,118.42,118.33,42.54114569]
[1644213678949,42.53248057,118.42,118.33,42.29114569]
[1644213679148,42.53248057,118.42,118.33,36.29114569]
[1644213679750,42.53248057,118.42,118.33,42.29114569]
[1644213680353,42.28248057,118.42,118.33,42.54114569]
[1644213680954,41.78248057,118.42,118.33,42.54114569]
[1644213681753,42.03248057,118.42,118.33,42.29114569]
[1644213682854,6.25,118.42,118.33,54.50114569]
[1644213683151,0.25,118.42,118.33,54.50114569]
[1644213683352,6.0,118.42,118.33,54.75114569]
[1644213683753,6.25,118.42,118.33,54.75114569]
[1644213683953,40.22565909,118.41,118.33,54.75114569]
[1644213684354,40.47565909,118.41,118.33,54.75114569]
[1644213684753,40.47565909,118.41,118.33,54.50114569]
[1644213685153,46.47565909,118.41,118.33,6.0]
[1644213685557,46.47565909,118.41,118.31,23.8703]
[1644213686159,47.66352167,118.41,118.32,35.50846853]
[1644213686456,47.66352167,118.41,118.29,22.6557]
[1644213686759,12.6805,118.38,118.29,22.6557]
[1644213687156,18.9305,118.38,118.29,22.6557]
[1644213687557,44.39938548,118.37,118.3,36.99459861]
[1644213687758,44.64938548,118.37,118.3,36.99459861]
[1644213687959,50.64938548,118.37,118.3,36.99459861]
[1644213689557,50.39938548,118.37,118.3,36.99459861]
[1644213691159,50.64938548,118.37,118.3,36.99459861]
[1644213692759,50.64938548,118.37,118.26,12.21]
[1644213692960,65.43679638,118.37,118.26,12.21]
[1644213693159,12.21,118.36,118.24,1.20413265]
[1644213693359,24.1428,118.35,118.23,1.20413265]
[1644213693559,44.4584109,118.35,118.22,1.20413265]
[1644213693859,50.50913676,118.34,118.23,37.55714894]
[1644213694058,56.50913676,118.34,118.23,37.55714894]
[1644213694258,56.75913676,118.34,118.23,37.55714894]
[1644213694661,69.44343676,118.34,118.23,37.55714894]
[1644213695062,56.75913676,118.34,118.23,43.55714894]
[1644213695258,54.65352586,118.34,118.23,45.73143308]
[1644213695958,54.65352586,118.34,118.23,43.80714894]
[1644213697362,54.65352586,118.34,118.23,43.55714894]
[1644213697560,54.65352586,118.34,118.23,37.80714894]
[1644213697960,67.33852586,118.34,118.23,43.80714894]
[1644213698161,67.33852586,118.34,118.23,37.80714894]
[1644213698360,67.33852586,118.34,118.23,37.55714894]
[1644213698961,67.33852586,118.34,118.23,43.55714894]
[1644213699360,69.44413676,118.34,118.23,43.55714894]
[1644213699760,67.33852586,118.34,118.23,43.55714894]
[1644213700570,67.33852586,118.34,118.23,43.80714894]
[1644213701165,54.65352586,118.34,118.24,12.21]
[1644213701365,48.65352586,118.34,118.25,44.31033001]
[1644213701562,48.65352586,118.34,118.25,62.52033001]
[1644213701767,48.65352586,118.34,118.25,62.77033001]
[1644213701962,48.40352586,118.34,118.25,62.77033001]
[1644213704866,48.65352586,118.34,118.25,62.77033001]
[1644213705071,0.25,118.34,118.25,64.69461415]
[1644213705267,22.8483,118.36,118.25,77.37341415]
[1644213705467,22.8483,118.36,118.25,78.5775468]
[1644213705767,22.8483,118.36,118.25,77.37341415]
[1644213705969,22.8483,118.36,118.25,78.5775468]
[1644213706168,47.10242189,118.35,118.25,78.5775468]
[1644213706369,47.35242189,118.35,118.25,77.37341415]
[1644213709375,47.35242189,118.35,118.25,64.69461415]
[1644213711001,47.35242189,118.35,118.25,65.8987468]
[1644213711200,47.35242189,118.35,118.25,64.69461415]
[1644213711601,53.35242189,118.35,118.25,64.69461415]
[1644213712000,53.35242189,118.35,118.25,65.6487468]
[1644213712201,55.45803279,118.35,118.25,6.0]
[1644213712400,55.45803279,118.35,118.24,24.4414]
[1644213712803,53.35242189,118.35,118.24,24.4414]
[1644213713101,66.03642189,118.35,118.24,30.4414]
[1644213713302,66.03642189,118.35,118.25,34.91683537]
[1644213713703,66.03642189,118.35,118.25,35.16683537]
[1644213714003,66.03642189,118.35,118.25,41.16683537]
[1644213715105,66.03642189,118.35,118.25,35.16683537]
[1644213715305,66.03642189,118.35,118.25,41.16683537]
[1644213716202,66.03642189,118.35,118.25,35.16683537]
[1644213716603,66.03642189,118.35,118.25,41.16683537]
[1644213716804,53.35242189,118.35,118.25,41.16683537]
[1644213718203,47.35242189,118.35,118.25,41.16683537]
[1644213718603,53.35242189,118.35,118.25,41.16683537]
[1644213719809,47.35242189,118.35,118.25,41.16683537]
[1644213720010,0.25,118.35,118.25,55.30111951]
[1644213720209,48.809,118.36,118.25,56.50525216]
[1644213720210,0.25,118.36,118.25,56.50525216]
[1644213720415,0.25,118.36,118.26,24.4127]
[1644213720612,0.25,118.37,118.27,12.21]
[1644213720810,1.18786258,118.39,118.27,14.38428414]
[1644213721010,41.56931493,118.4,118.28,71.9192607]
[1644213721211,37.99876646,118.38,118.3,12.6741]
[1644213721410,37.99876646,118.38,118.31,45.3615671]
[1644213721811,37.99876646,118.38,118.31,45.6115671]
[1644213722512,37.99876646,118.38,118.29,12.21]
[1644213722710,37.99876646,118.38,118.29,1.20413265]
[1644213722910,43.99876646,118.38,118.27,1.20413265]
[1644213723114,43.99876646,118.38,118.26,21.33841679]
[1644213723314,43.99876646,118.38,118.27,40.22272602]
[1644213723513,43.99876646,118.38,118.27,63.91872602]
[1644213723712,44.24876646,118.38,118.27,68.96459337]
[1644213723916,44.24876646,118.38,118.27,62.96459337]
[1644213724713,56.92986646,118.38,118.27,64.16872602]
[1644213725717,56.92986646,118.38,118.27,62.96459337]
[1644213726115,56.92986646,118.38,118.27,70.16872602]
[1644213726315,46.02568579,118.36,118.27,70.16872602]
[1644213726517,46.02568579,118.36,118.27,62.96459337]
[1644213726717,52.27568579,118.36,118.27,68.96459337]
[1644213727120,52.27568579,118.36,118.27,62.96459337]
[1644213729624,52.27568579,118.36,118.27,68.96459337]
[1644213730322,46.27568579,118.36,118.27,68.96459337]
[1644213731220,46.27568579,118.36,118.27,29.946]
[1644213731422,52.27568579,118.36,118.26,3.12841679]
[1644213731821,57.68954837,118.36,118.26,1.92428414]
[1644213732021,57.68954837,118.36,118.24,1.20413265]
[1644213732320,47.27343237,118.34,118.24,48.52699832]
[1644213732521,47.27343237,118.34,118.24,54.52699832]
[1644213732821,53.52343237,118.34,118.24,7.45413265]
[1644213733319,53.52343237,118.34,118.24,1.45413265]
[1644213733523,53.52343237,118.34,118.24,6.0]
[1644213733722,54.71129495,118.34,118.22,15.33841679]
[1644213733925,43.47672385,118.32,118.21,95.36137117]
[1644213734120,62.16442385,118.32,118.21,95.36137117]
[1644213734321,64.52003475,118.32,118.21,48.15703852]
[1644213734921,62.41442385,118.32,118.21,48.15703852]
[1644213735122,62.41442385,118.32,118.21,55.36117117]
[1644213735322,62.41442385,118.32,118.21,57.28545531]
[1644213735721,62.41442385,118.32,118.21,55.61117117]
[1644213736524,62.41442385,118.32,118.21,48.15703852]
[1644213736751,62.41442385,118.32,118.2,25.66213265]
[1644213736752,2.1056109,118.31,118.2,1.20413265]
[1644213736927,12.6891,118.3,118.2,1.20413265]
[1644213737125,42.3143,118.3,118.19,13.41413265]
[1644213737327,29.8752,118.3,118.19,13.41413265]
[1644213737527,23.8752,118.3,118.2,1.20413265]
[1644213737728,40.81337007,118.29,118.2,60.51697858]
[1644213738128,41.06337007,118.29,118.2,66.76697858]
[1644213738329,41.06337007,118.29,118.2,66.51697858]
[1644213738529,41.06337007,118.29,118.2,66.76697858]
[1644213739730,41.06337007,118.29,118.2,65.56284593]
[1644213740029,41.06337007,118.29,118.2,66.76697858]
[1644213740732,41.06337007,118.29,118.2,65.56284593]
[1644213741533,47.06337007,118.29,118.2,65.56284593]
[1644213743035,0.25,118.29,118.2,65.56284593]
[1644213743235,24.4413,118.33,118.21,12.21]
[1644213743436,24.4413,118.33,118.22,1.20413265]
[1644213743636,24.6913,118.33,118.23,12.21]
[1644213743838,24.6913,118.33,118.23,12.46]
[1644213744036,43.99507409,118.32,118.24,42.94539992]
[1644213744257,43.99507409,118.32,118.25,12.21]
[1644213744258,44.24507409,118.32,118.25,12.21]
[1644213744557,44.24507409,118.32,118.26,44.65586628]
[1644213744759,43.99507409,118.32,118.26,44.65586628]
[1644213744959,43.99507409,118.32,118.26,6.0]
[1644213745357,43.99507409,118.32,118.23,12.21]
[1644213745557,43.99507409,118.32,118.23,18.21]
[1644213745758,43.99507409,118.32,118.24,1.91452435]
[1644213745959,43.99507409,118.32,118.25,39.31035242]
[1644213746159,44.24507409,118.32,118.25,45.31035242]
[1644213746558,44.24507409,118.32,118.25,45.56035242]
[1644213747762,44.24507409,118.32,118.25,45.31035242]
[1644213749861,48.3668,118.35,118.25,45.56035242]
[1644213750061,48.6168,118.35,118.25,72.20007677]
[1644213750261,48.6168,118.35,118.26,12.21]
[1644213750461,54.6168,118.35,118.26,12.21]
[1644213750660,48.6168,118.35,118.26,18.21]
[1644213750861,48.6168,118.35,118.27,42.7931857]
[1644213750862,35.13147534,118.34,118.27,42.7931857]
[1644213751060,41.13147534,118.34,118.27,42.7931857]
[1644213751260,41.38147534,118.34,118.27,42.7931857]
[1644213753161,41.13147534,118.34,118.27,42.7931857]
[1644213755163,41.38147534,118.34,118.27,42.7931857]
[1644213756168,35.38147534,118.34,118.27,42.7931857]
[1644213756571,41.38147534,118.34,118.25,23.5369]
[1644213757666,41.38147534,118.34,118.26,42.73247525]
[1644213758667,41.38147534,118.34,118.23,13.41413265]
[1644213758867,22.7194,118.33,118.23,19.41413265]
[1644213759071,28.7194,118.33,118.22,24.58073265]
[1644213759268,28.9694,118.33,118.22,23.3766]
[1644213759670,48.5419549,118.32,118.23,48.0692281]
[1644213760072,54.7919549,118.32,118.23,48.0692281]
[1644213765674,54.7919549,118.32,118.23,54.3192281]
[1644213765875,54.7919549,118.32,118.23,48.3192281]
[1644213766075,54.7919549,118.32,118.23,54.3192281]
[1644213766277,54.7919549,118.32,118.23,55.52336075]
[1644213766477,48.7919549,118.32,118.23,55.52336075]
[1644213767279,0.25,118.32,118.23,55.52336075]
[1644213767680,22.7194,118.33,118.23,57.43788497]
[1644213767880,22.7194,118.33,118.24,1.20413265]
[1644213768082,22.7194,118.33,118.24,7.20413265]
[1644213768381,22.7194,118.33,118.25,42.87461556]
[1644213768579,22.7194,118.33,118.25,48.87461556]
[1644213768779,22.7194,118.33,118.25,49.12461556]
[1644213768981,1.18786258,118.37,118.25,61.33461556]
[1644213769180,1.18786258,118.39,118.26,25.21203265]
[1644213769382,1.18786258,118.39,118.27,12.21]
[1644213769679,1.18786258,118.4,118.28,1.20413265]
[1644213769879,46.32623549,118.39,118.29,47.13174942]
[1644213770079,46.32623549,118.39,118.31,43.36918819]